bitfinex/quotes_BTCUSD_20241011
["timestamp","ask_amount","ask_price","bid_price","bid_amount"]
[1728617820176,0.11536942,60656.0,60655.0,0.1648053]
[1728617821254,0.11536942,60656.0,60655.0,0.14938]
[1728617821482,0.11536942,60656.0,60655.0,0.16481053]
[1728617821930,0.11536942,60656.0,60655.0,0.01643053]
[1728617822800,0.11536942,60656.0,60655.0,0.01543053]
[1728617823232,0.11536942,60656.0,60655.0,0.01843053]
[1728617824812,0.11536942,60656.0,60655.0,0.01843331]
[1728617825694,0.34404642,60656.0,60655.0,0.01843331]
[1728617825951,0.53635572,60656.0,60655.0,0.003]
[1728617826393,0.148388,60652.0,60646.0,0.148401]
[1728617826611,0.09877655,60650.0,60646.0,0.148401]
[1728617826869,0.0771,60649.0,60646.0,0.148401]
[1728617827091,0.10224588,60649.0,60647.0,0.148398]
[1728617827540,0.10224588,60649.0,60645.0,0.296807]
[1728617827541,0.10224588,60649.0,60645.0,0.44521]
[1728617827769,0.10224588,60649.0,60646.0,0.1484]
[1728617829196,0.10224588,60649.0,60643.0,0.001634]
[1728617829436,0.0979,60648.0,60643.0,0.001634]
[1728617829658,0.12300481,60648.0,60645.0,0.151403]
[1728617829887,0.09877655,60647.0,60646.0,0.005]
[1728617830115,0.09877655,60647.0,60643.0,0.001634]
[1728617830341,0.0986,60646.0,60643.0,0.009634]
[1728617830620,0.0986,60646.0,60643.0,0.006634]
[1728617830890,0.02510481,60645.0,60643.0,0.155042]
[1728617831130,0.02510481,60645.0,60644.0,0.148407]
[1728617831600,0.1757,60649.0,60643.0,0.006634]
[1728617831832,0.3450093,60649.0,60646.0,0.148401]
[1728617833661,0.02510481,60648.0,60646.0,0.001]
[1728617834595,0.02510481,60648.0,60645.0,0.148403]
[1728617834866,0.02510481,60648.0,60646.0,0.001]
[1728617836054,0.02510481,60648.0,60645.0,0.148403]
[1728617836405,0.02510481,60648.0,60645.0,0.150403]
[1728617836630,0.02510481,60648.0,60645.0,0.148403]
[1728617836849,0.02510481,60648.0,60646.0,0.001]
[1728617837039,0.02510481,60648.0,60645.0,0.148403]
[1728617837460,0.02510481,60648.0,60645.0,0.150403]
[1728617837657,0.02510481,60648.0,60645.0,0.148403]
[1728617837870,0.02510481,60648.0,60646.0,0.001]
[1728617839235,0.02510481,60648.0,60645.0,0.148403]
[1728617839440,0.02510481,60648.0,60645.0,0.150403]
[1728617839651,0.02510481,60648.0,60645.0,0.148403]
[1728617840134,0.02510481,60648.0,60646.0,0.001]
[1728617840340,0.02510481,60648.0,60645.0,0.148403]
[1728617840563,0.02510481,60648.0,60645.0,0.150403]
[1728617843752,0.02510481,60648.0,60646.0,0.148401]
[1728617843978,0.02510481,60648.0,60645.0,0.150404]
[1728617851370,0.02510481,60648.0,60646.0,0.148401]
[1728617852654,0.02510481,60648.0,60646.0,0.150401]
[1728617853086,0.02510481,60648.0,60646.0,0.148401]
[1728617853311,0.02510481,60648.0,60646.0,0.150401]
[1728617853549,0.02510481,60648.0,60646.0,0.148401]
[1728617853784,0.02510481,60648.0,60646.0,0.150401]
[1728617854238,0.02510481,60648.0,60644.0,0.296812]
[1728617854468,0.02510481,60648.0,60645.0,0.148404]
[1728617855428,0.02510481,60648.0,60644.0,0.149406]
[1728617855877,0.02510481,60648.0,60646.0,0.002]
[1728617856367,0.02510481,60648.0,60644.0,0.148406]
[1728617856781,0.02510481,60648.0,60644.0,0.152406]
[1728617857226,0.02510481,60648.0,60644.0,0.148406]
[1728617857684,0.02510481,60648.0,60646.0,0.002]
[1728617857902,0.02510481,60648.0,60644.0,0.149406]
[1728617858342,0.17350381,60648.0,60644.0,0.005]
[1728617858586,0.0968,60647.0,60644.0,0.004]
[1728617858802,0.02509924,60646.0,60644.0,0.004]
[1728617859460,0.02509924,60646.0,60643.0,0.150042]
[1728617860427,0.02509924,60646.0,60644.0,0.003]
[1728617860738,0.02509924,60646.0,60643.0,0.155042]
[1728617860942,0.02509924,60646.0,60643.0,0.159042]
[1728617861150,0.02509924,60646.0,60643.0,0.156042]
[1728617861579,0.02509924,60646.0,60644.0,0.003]
[1728617862874,0.02509924,60646.0,60645.0,0.148404]
[1728617864193,0.000817,60648.0,60645.0,0.150404]
[1728617864414,0.02509973,60646.0,60645.0,0.150404]
[1728617864645,0.000817,60648.0,60645.0,0.150404]
[1728617864864,0.02509973,60646.0,60645.0,0.150404]
[1728617865106,0.000817,60648.0,60645.0,0.150404]
[1728617865338,0.02509973,60646.0,60645.0,0.150404]
[1728617865553,0.000817,60648.0,60645.0,0.150404]
[1728617865771,0.000817,60648.0,60645.0,0.148404]
[1728617865980,0.02509924,60647.0,60646.0,0.148401]
[1728617867138,0.02509924,60647.0,60646.0,0.149401]
[1728617867369,0.000817,60648.0,60646.0,0.001]
[1728617867596,0.000817,60648.0,60647.0,0.148399]
[1728617868959,0.000817,60648.0,60646.0,0.001]
[1728617869424,0.000817,60648.0,60647.0,0.148399]
[1728617870845,0.000817,60648.0,60647.0,0.151399]
[1728617878606,0.02592658,60648.0,60647.0,0.151399]
[1728617879235,0.02592658,60648.0,60647.0,0.148399]
[1728617879441,0.02592658,60648.0,60647.0,0.150399]
[1728617880966,0.02592658,60648.0,60647.0,0.002]
[1728617881881,0.34363288,60648.0,60647.0,0.002]
[1728617886642,0.34363288,60648.0,60647.0,0.01744903]
[1728617886850,0.19523588,60648.0,60647.0,0.01744903]
[1728617888585,0.46540943,60648.0,60647.0,0.01744903]
[1728617888812,0.63510943,60648.0,60647.0,0.01744903]
[1728617889734,0.63510943,60648.0,60647.0,0.03289991]
[1728617889943,0.63510943,60648.0,60647.0,0.002]
[1728617890157,0.94090758,60648.0,60647.0,0.002]
[1728617890371,1.06565874,60648.0,60647.0,0.002]
[1728617891262,0.90813947,60648.0,60647.0,0.002]
[1728617891750,0.83388598,60648.0,60647.0,0.002]
[1728617891945,0.93289064,60648.0,60647.0,0.002]
[1728617892378,0.73510943,60648.0,60647.0,0.002]
[1728617893486,0.80934668,60648.0,60647.0,0.002]
[1728617896855,0.97878938,60648.0,60647.0,0.002]
[1728617898391,0.80934668,60648.0,60647.0,0.002]
[1728617899267,0.73510943,60648.0,60647.0,0.002]
[1728617904359,0.78457488,60648.0,60647.0,0.002]
[1728617905072,0.73510943,60648.0,60647.0,0.002]
[1728617905287,0.7845737,60648.0,60647.0,0.002]
[1728617906580,0.9540164,60648.0,60647.0,0.002]
[1728617909208,0.85523985,60648.0,60647.0,0.002]
[1728617909422,0.68579715,60648.0,60647.0,0.002]
[1728617909686,0.19523588,60648.0,60647.0,0.002]
[1728617910756,0.34363288,60648.0,60647.0,0.002]
[1728617910974,0.19523588,60648.0,60647.0,0.002]
[1728617919284,0.34363288,60648.0,60647.0,0.002]
[1728617921789,0.19523588,60648.0,60647.0,0.002]
[1728617923372,0.34363288,60648.0,60647.0,0.002]
[1728617924840,0.19523588,60648.0,60647.0,0.150399]
[1728617925078,0.19523588,60648.0,60647.0,0.56916784]
[1728617925079,0.02592658,60648.0,60647.0,0.56916784]
[1728617925315,0.02592658,60648.0,60647.0,0.6184686]
[1728617925540,0.000817,60648.0,60647.0,0.59484653]
[1728617925784,0.000817,60648.0,60647.0,0.59468828]
[1728617926205,0.000817,60648.0,60647.0,0.59268828]
[1728617926445,0.000817,60648.0,60647.0,0.54228868]
[1728617926694,0.000817,60648.0,60647.0,0.51756238]
[1728617926912,0.000817,60648.0,60647.0,0.54218548]
[1728617927139,0.000817,60648.0,60647.0,0.54418548]
[1728617927367,0.000817,60648.0,60647.0,0.51952867]
[1728617927580,0.000817,60648.0,60647.0,0.51752867]
[1728617927815,0.000817,60648.0,60647.0,0.52852867]
[1728617928057,0.000817,60648.0,60647.0,0.43975212]
[1728617928290,0.000817,60648.0,60647.0,0.42975212]
[1728617928517,0.000817,60648.0,60647.0,0.47928809]
[1728617928762,0.000817,60648.0,60647.0,0.49328809]
[1728617929431,0.000817,60648.0,60647.0,0.30001154]
[1728617929648,0.000817,60648.0,60647.0,0.27538844]
[1728617930105,0.000817,60648.0,60647.0,0.27537908]
[1728617931528,0.000817,60648.0,60647.0,0.19377908]
[1728617934589,0.000817,60648.0,60647.0,0.3986551]
[1728617934805,0.000817,60648.0,60647.0,0.4983551]
[1728617936897,0.000817,60648.0,60647.0,0.49833646]
[1728617940499,0.000817,60648.0,60647.0,0.47374634]
[1728617940729,0.000817,60648.0,60647.0,0.48296881]
[1728617940971,0.000817,60648.0,60647.0,0.52292704]
[1728617942824,0.000817,60648.0,60647.0,0.49833736]
[1728617943051,0.000817,60648.0,60647.0,0.52292636]
[1728617944951,0.000817,60648.0,60647.0,0.4983331]
[1728617948147,0.000817,60648.0,60647.0,0.52908783]
[1728617951340,0.000817,60648.0,60647.0,0.4983331]
[1728617953301,0.000817,60648.0,60647.0,0.4983894]
[1728617960167,0.000817,60648.0,60647.0,0.47377631]
[1728617960389,0.000817,60648.0,60647.0,0.48301809]
[1728617960607,0.000817,60648.0,60647.0,0.49841968]
[1728617963484,0.000817,60648.0,60647.0,0.524089]
[1728617963715,0.000817,60648.0,60647.0,0.45837555]
[1728617963932,0.000817,60648.0,60647.0,0.5241149]
[1728617966993,0.000817,60648.0,60647.0,0.5101149]
[1728617967206,0.000817,60648.0,60647.0,0.51313964]
[1728617967641,0.000817,60648.0,60647.0,0.52513964]
[1728617968469,0.000817,60648.0,60647.0,0.49945054]
[1728617969349,0.000817,60648.0,60647.0,0.54864897]
[1728617970316,0.000817,60648.0,60647.0,0.57324819]
[1728617974030,0.000817,60648.0,60647.0,0.39204819]
[1728617975575,0.000817,60648.0,60647.0,0.42288459]
[1728617978544,0.000817,60648.0,60647.0,0.34908694]
[1728617979428,0.000817,60648.0,60647.0,0.44234731]
[1728617980088,0.000817,60648.0,60647.0,0.44258565]
[1728617980815,0.000817,60648.0,60647.0,0.37681076]
[1728617981051,0.000817,60648.0,60647.0,0.4014832]
[1728617981290,0.000817,60648.0,60647.0,0.46727645]
[1728617982391,0.000817,60648.0,60647.0,0.46729903]
[1728617982606,0.000817,60648.0,60647.0,0.36864124]
[1728617983467,0.000817,60648.0,60647.0,0.51224075]
[1728617984405,0.000817,60648.0,60647.0,0.49681919]
[1728617984712,0.000817,60648.0,60647.0,0.51223869]
[1728617985143,0.000817,60648.0,60647.0,0.48756625]
[1728617985570,0.000817,60648.0,60647.0,0.40866625]
[1728617987584,0.000817,60648.0,60647.0,0.53199393]
[1728617989057,0.000817,60648.0,60647.0,0.44159393]
[1728617989397,0.000817,60648.0,60647.0,0.34282995]
[1728617990740,0.000817,60648.0,60647.0,0.31816225]
[1728617990741,0.175417,60648.0,60647.0,0.31816225]
[1728617990991,0.19680915,60648.0,60647.0,0.2194897]
[1728617991222,0.175417,60648.0,60647.0,0.2194897]
[1728617994987,0.175417,60648.0,60647.0,0.21946157]
[1728617997850,0.098017,60648.0,60647.0,0.21946157]
[1728617999679,0.000817,60648.0,60647.0,0.21946157]
[1728618001102,0.000817,60648.0,60647.0,0.21944215]
[1728618005552,0.000817,60648.0,60647.0,0.20744215]
[1728618005771,0.000817,60648.0,60647.0,0.21944215]
[1728618005987,0.000817,60648.0,60647.0,0.20544215]
[1728618006412,0.000817,60648.0,60647.0,0.20644215]
[1728618006636,0.000817,60648.0,60647.0,0.21644215]
[1728618007638,0.000817,60648.0,60647.0,0.21644849]
[1728618012430,0.000817,60648.0,60647.0,0.40772504]
[1728618012669,0.000817,60656.0,60647.0,0.40772504]
[1728618012670,0.000817,60656.0,60655.0,0.14838]
[1728618012904,0.000817,60656.0,60655.0,0.30452516]
[1728618013156,0.000817,60656.0,60655.0,0.35380483]
[1728618013157,0.0186462,60656.0,60655.0,0.35380483]
[1728618013398,0.000817,60656.0,60655.0,0.30452516]
[1728618014099,0.000817,60656.0,60655.0,0.26447567]
[1728618014321,0.000817,60656.0,60655.0,0.3044961]
[1728618014766,0.000817,60656.0,60655.0,0.3224961]
[1728618014957,0.000817,60656.0,60655.0,0.36075981]
[1728618015237,0.000817,60656.0,60655.0,0.36775981]
[1728618015459,0.000817,60656.0,60655.0,0.3979961]
[1728618015681,0.000817,60656.0,60655.0,0.45725981]
[1728618016106,0.000817,60656.0,60655.0,0.43325981]
[1728618016380,0.000817,60656.0,60655.0,0.4119961]
[1728618016816,0.000817,60656.0,60655.0,0.46125981]
[1728618017034,0.000817,60656.0,60655.0,0.46128452]
[1728618017256,0.000817,60656.0,60655.0,0.31321955]
[1728618017481,0.000817,60656.0,60655.0,0.43327845]
[1728618017703,0.000817,60656.0,60655.0,0.3839961]
[1728618018135,0.000817,60656.0,60655.0,0.44727845]
[1728618018563,0.000817,60656.0,60655.0,0.4119961]
[1728618018847,0.000817,60656.0,60655.0,0.30090436]
[1728618019088,0.000817,60656.0,60655.0,0.3979961]
[1728618019307,0.000817,60656.0,60655.0,0.46127845]
[1728618019732,0.000817,60656.0,60655.0,0.4119961]
[1728618020187,0.000817,60656.0,60655.0,0.46127845]
[1728618020405,0.000817,60656.0,60655.0,0.39968091]
[1728618023172,0.000817,60656.0,60655.0,0.42429629]
[1728618030714,0.000817,60656.0,60655.0,0.42427819]
[1728618031803,0.000817,60656.0,60655.0,0.24600164]
[1728618032041,0.000817,60656.0,60655.0,0.06800387]
[1728618032042,0.098617,60656.0,60655.0,0.06800387]
[1728618032271,0.12482224,60656.0,60655.0,0.1917661]
[1728618032498,0.12482224,60656.0,60655.0,0.0433861]
[1728618032716,0.12482224,60656.0,60655.0,0.0293861]
[1728618033167,0.12482224,60656.0,60655.0,0.06101516]
[1728618033589,0.12482224,60656.0,60655.0,0.05401516]
[1728618033807,0.12482224,60656.0,60655.0,0.04101516]
[1728618034043,0.12482224,60656.0,60655.0,0.18939516]
[1728618034262,0.12482224,60656.0,60655.0,0.19539516]
[1728618034473,0.12482224,60656.0,60655.0,0.18939516]
[1728618034681,0.12482224,60656.0,60655.0,0.19339729]
[1728618034892,0.12482224,60656.0,60655.0,0.15338]
[1728618035108,0.12482224,60656.0,60655.0,0.19340692]
[1728618035322,0.12482224,60656.0,60655.0,0.16877497]
[1728618037776,0.12482224,60656.0,60655.0,0.16877879]
[1728618041192,0.02702224,60656.0,60655.0,0.16877879]
[1728618041917,0.000817,60656.0,60655.0,0.19957416]
[1728618044671,0.000817,60656.0,60655.0,0.18417877]
[1728618044940,0.000817,60656.0,60655.0,0.19957815]
[1728618048474,0.000817,60656.0,60655.0,0.15338]
[1728618048697,0.000817,60656.0,60655.0,0.19957697]
[1728618050856,0.000817,60656.0,60655.0,0.37857697]
[1728618051566,0.000817,60656.0,60655.0,0.37157697]
[1728618051781,0.000817,60656.0,60655.0,0.38157697]
[1728618051974,0.000817,60656.0,60655.0,0.38757431]
[1728618052501,0.000817,60656.0,60655.0,0.38157431]
[1728618052699,0.000817,60656.0,60655.0,0.39057431]
[1728618053405,0.000817,60656.0,60655.0,0.38057431]
[1728618053595,0.000817,60656.0,60655.0,0.39357431]
[1728618053957,0.000817,60656.0,60655.0,0.3627781]
[1728618055261,0.000817,60656.0,60655.0,0.39663792]
[1728618055399,0.000817,60656.0,60655.0,0.41203526]
[1728618056076,0.000817,60656.0,60655.0,0.4428294]
[1728618056955,0.000817,60656.0,60655.0,0.41203526]
[1728618058527,0.000817,60656.0,60655.0,0.39663792]
[1728618058766,0.000817,60656.0,60655.0,0.4120346]
[1728618059017,0.000817,60656.0,60655.0,0.36277668]
[1728618061132,0.000817,60656.0,60655.0,0.39356813]
[1728618062036,0.000817,60656.0,60655.0,0.36277668]
[1728618062506,0.000817,60656.0,60655.0,0.46155323]
[1728618064686,0.000817,60656.0,60655.0,0.44615655]
[1728618064981,0.000817,60656.0,60655.0,0.46155206]
[1728618070488,0.000817,60656.0,60655.0,0.46318606]
[1728618073508,0.000817,60656.0,60655.0,0.38278606]
[1728618073961,0.000817,60656.0,60655.0,0.43204712]
[1728618074194,0.000817,60656.0,60655.0,0.4320466]
[1728618074617,0.000817,60656.0,60655.0,0.382805]
[1728618074834,0.000817,60656.0,60655.0,0.43206539]
[1728618075052,0.000817,60656.0,60655.0,0.382805]
[1728618075432,0.000817,60656.0,60655.0,0.43206483]
[1728618075676,0.000817,60656.0,60655.0,0.19042845]
[1728618075942,0.000817,60656.0,60655.0,0.18542845]
[1728618076185,0.000817,60656.0,60655.0,0.19042845]
[1728618076408,0.02702173,60656.0,60655.0,0.18542845]
[1728618076630,0.091217,60656.0,60655.0,0.18542845]
[1728618076850,0.091217,60656.0,60655.0,0.16842845]
[1728618076851,0.11742173,60656.0,60655.0,0.16842845]
[1728618077081,0.11742173,60656.0,60655.0,0.18442845]
[1728618077752,0.11742173,60656.0,60655.0,0.17842845]
[1728618078195,0.11742173,60656.0,60655.0,0.18043005]
[1728618078859,0.11742173,60656.0,60655.0,0.17043005]
[1728618079522,0.11742173,60656.0,60655.0,0.17743005]
[1728618079754,0.11742173,60656.0,60655.0,0.17043005]
[1728618079979,0.11742173,60656.0,60655.0,0.17643005]
[1728618085116,0.11742173,60656.0,60655.0,0.161014]
[1728618085341,0.11742173,60656.0,60655.0,0.17641493]
[1728618086329,0.02702173,60656.0,60655.0,0.17641493]
[1728618086809,0.000817,60656.0,60655.0,0.17641493]
[1728618095855,0.000817,60656.0,60655.0,0.17641554]
[1728618099475,0.000817,60656.0,60655.0,0.17641795]
[1728618100515,0.000817,60656.0,60655.0,0.26711795]
[1728618100739,0.000817,60656.0,60655.0,0.34431795]
[1728618101028,0.000817,60656.0,60655.0,0.44391821]
[1728618101172,0.000817,60656.0,60655.0,0.41824495]
[1728618101545,0.000817,60656.0,60655.0,0.48600791]
[1728618102690,0.000817,60656.0,60655.0,0.48000791]
[1728618102931,0.000817,60656.0,60655.0,0.47800791]
[1728618103181,0.000817,60656.0,60655.0,0.48800791]
[1728618103409,0.000817,60656.0,60655.0,0.82113777]
[1728618103632,0.000817,60664.0,60663.0,0.32876]
[1728618103864,0.000817,60664.0,60663.0,0.51070346]
[1728618104078,0.02698373,60664.0,60663.0,0.58561522]
[1728618104327,0.000817,60664.0,60663.0,0.51070346]
[1728618104560,0.000817,60664.0,60663.0,0.68001276]
[1728618104823,0.000817,60664.0,60663.0,0.77851524]
[1728618105044,0.000817,60664.0,60663.0,0.79389999]
[1728618105281,0.000817,60664.0,60663.0,0.70939751]
[1728618105750,0.000817,60664.0,60663.0,0.79389999]
[1728618105987,0.000817,60664.0,60663.0,0.70939751]
[1728618106223,0.000817,60664.0,60663.0,0.79718719]
[1728618106451,0.000817,60664.0,60663.0,0.77077222]
[1728618106668,0.000817,60664.0,60663.0,0.70926012]
[1728618106925,0.000817,60664.0,60663.0,0.8217626]
[1728618107162,0.000817,60664.0,60663.0,0.84838822]
[1728618107834,0.000817,60664.0,60663.0,0.83026012]
[1728618108268,0.000817,60664.0,60663.0,1.05196385]
[1728618108527,0.000817,60664.0,60663.0,0.92903667]
[1728618108775,1e-06,60664.0,60663.0,1.07658839]
[1728618109011,0.00077153,60676.0,60674.0,0.436633]
[1728618109244,0.00077153,60676.0,60674.0,0.92587279]
[1728618109720,0.00077153,60676.0,60674.0,0.77523048]
[1728618109944,0.00077153,60676.0,60674.0,0.8887521]
[1728618110165,0.00077153,60676.0,60674.0,0.79255952]
[1728618110394,0.00077153,60676.0,60674.0,0.86615864]
[1728618110618,0.00077153,60676.0,60674.0,0.88015994]
[1728618110868,0.00077153,60676.0,60674.0,0.80455952]
[1728618111106,0.00077153,60676.0,60674.0,0.9027521]
[1728618111393,0.00077153,60676.0,60674.0,0.88012126]
[1728618111846,0.00077153,60676.0,60674.0,1.12586882]
[1728618112093,0.00077153,60676.0,60674.0,0.9047521]
[1728618112334,0.00077153,60676.0,60674.0,0.81882255]
[1728618112335,1e-06,60675.0,60674.0,0.81882255]
[1728618112559,1e-06,60675.0,60674.0,0.92929919]
[1728618112783,1e-06,60675.0,60674.0,0.94329919]
[1728618113151,1e-06,60675.0,60674.0,0.81774174]
[1728618113744,1e-06,60675.0,60674.0,0.81974174]
[1728618114184,1e-06,60675.0,60674.0,0.80703868]
[1728618115257,1e-06,60675.0,60674.0,0.78254079]
[1728618115469,1e-06,60675.0,60674.0,0.74988356]
[1728618115899,1e-06,60675.0,60674.0,0.75188356]
[1728618116101,1e-06,60675.0,60674.0,0.70294957]
[1728618116730,1e-06,60675.0,60674.0,0.66309517]
[1728618116934,1e-06,60675.0,60674.0,0.70280133]
[1728618118945,1e-06,60675.0,60674.0,0.70939433]
[1728618119376,1e-06,60675.0,60674.0,0.73993753]
[1728618120265,1e-06,60675.0,60674.0,0.73793753]
[1728618120473,1e-06,60675.0,60674.0,0.65235913]
[1728618120694,1e-06,60675.0,60674.0,0.70730899]
[1728618121126,1e-06,60675.0,60674.0,0.73275102]
[1728618122002,1e-06,60675.0,60674.0,0.70930899]
[1728618122663,1e-06,60675.0,60674.0,0.70730899]
[1728618122902,1e-06,60675.0,60674.0,0.75113568]
[1728618123125,1e-06,60675.0,60674.0,0.80809926]
[1728618123357,1e-06,60675.0,60674.0,0.83663458]
[1728618125725,0.00077153,60676.0,60675.0,0.11]
[1728618125941,0.00077153,60676.0,60675.0,0.5131392]
[1728618126814,0.00077153,60676.0,60675.0,0.5411392]
[1728618127015,0.00077153,60676.0,60675.0,0.63991575]
[1728618127230,0.00077153,60676.0,60675.0,0.66538897]
[1728618127430,0.00077153,60676.0,60675.0,0.63991575]
[1728618129871,0.00077153,60676.0,60675.0,0.82512988]
[1728618130096,0.00077153,60676.0,60675.0,0.81291575]
[1728618130329,0.00077153,60676.0,60675.0,0.82512988]
[1728618130770,0.000817,60680.0,60679.0,0.35709755]
[1728618130990,0.000817,60680.0,60679.0,0.61190575]
[1728618131427,0.000817,60680.0,60679.0,0.62411988]
[1728618131733,0.000817,60680.0,60679.0,0.90489643]
[1728618132612,0.000817,60687.0,60685.0,0.153306]
[1728618132860,0.000817,60687.0,60685.0,0.51910488]
[1728618133293,0.000817,60687.0,60685.0,0.42032833]
[1728618133517,0.000817,60687.0,60685.0,0.47362522]
[1728618133746,0.000817,60687.0,60685.0,0.52576979]
[1728618134005,0.000817,60687.0,60685.0,0.53976979]
[1728618134711,0.000817,60687.0,60685.0,0.61906979]
[1728618134942,0.000817,60687.0,60685.0,0.71716979]
[1728618135154,0.000817,60687.0,60685.0,0.73116979]
[1728618135625,0.000817,60687.0,60685.0,0.70316979]
[1728618135846,0.000817,60687.0,60685.0,0.73116979]
[1728618136064,0.000817,60687.0,60685.0,0.71716979]
[1728618136797,0.000817,60687.0,60685.0,0.66062125]
[1728618136996,0.000817,60687.0,60685.0,0.73122225]
[1728618137692,0.000817,60687.0,60685.0,0.74336204]
[1728618138411,0.000817,60687.0,60685.0,0.64526204]
[1728618139702,0.000817,60687.0,60685.0,0.56596204]
[1728618140383,0.000817,60687.0,60685.0,0.55377957]
[1728618140601,0.000817,60687.0,60685.0,0.56606881]
[1728618140829,0.000818,60695.0,60694.0,0.005]
[1728618141056,0.000818,60695.0,60694.0,0.25159772]
[1728618141958,0.000818,60695.0,60694.0,0.26459772]
[1728618142679,0.000818,60695.0,60694.0,0.27859772]
[1728618146826,0.000818,60695.0,60691.0,0.296579]
[1728618146827,0.000818,60695.0,60689.0,0.26712127]
[1728618147093,0.000818,60695.0,60694.0,0.148284]
[1728618148443,0.000818,60695.0,60688.0,0.09877655]
[1728618148444,0.0814,60694.0,60688.0,0.296596]
[1728618148684,0.0814,60694.0,60683.0,0.296622]
[1728618148685,0.0804,60690.0,60683.0,0.296622]
[1728618148917,0.0804,60690.0,60689.0,0.014]
[1728618149379,0.1792,60690.0,60689.0,0.014]
[1728618149639,0.1792,60690.0,60688.0,0.148297]
[1728618150562,0.1792,60690.0,60689.0,0.002]
[1728618151050,0.27797655,60690.0,60689.0,0.002]
[1728618151502,0.1792,60690.0,60689.0,0.150297]
[1728618151727,0.1792,60690.0,60689.0,0.148297]
[1728618152196,0.1802,60690.0,60689.0,0.148297]
[1728618152407,0.1802,60690.0,60687.0,0.444901]
[1728618152621,0.1802,60690.0,60689.0,0.005]
[1728618152844,0.1802,60690.0,60689.0,0.148297]
[1728618153288,0.1802,60690.0,60689.0,0.151297]
[1728618154225,0.1792,60690.0,60689.0,0.151297]
[1728618154447,0.1792,60690.0,60689.0,0.152931]
[1728618154669,0.180017,60690.0,60689.0,0.004634]
[1728618155549,0.180017,60690.0,60689.0,0.152931]
[1728618155978,0.180017,60690.0,60689.0,0.004634]
[1728618156543,0.58818441,60690.0,60689.0,0.004634]
[1728618157001,0.5206203,60690.0,60689.0,0.004634]
[1728618157688,0.5276203,60690.0,60689.0,0.004634]
[1728618158138,0.5276203,60690.0,60689.0,0.001634]
[1728618158368,0.5276203,60690.0,60689.0,0.004634]
[1728618158601,0.6829937,60690.0,60689.0,0.001634]
[1728618158811,0.8478051,60690.0,60689.0,0.001634]
[1728618159022,0.8498051,60690.0,60689.0,0.001634]
[1728618160879,0.8478051,60690.0,60689.0,0.001634]
[1728618162790,0.9498051,60690.0,60689.0,0.001634]
[1728618163487,0.9448051,60690.0,60689.0,0.001634]
[1728618163919,0.9448051,60690.0,60689.0,0.002634]
[1728618163920,0.96859916,60690.0,60689.0,0.002634]
[1728618164382,0.95459916,60690.0,60689.0,0.001634]
[1728618164630,0.96559916,60690.0,60689.0,0.002634]
[1728618164856,0.97659916,60690.0,60689.0,0.003634]
[1728618165112,0.95259916,60690.0,60689.0,0.001634]
[1728618165336,0.96359916,60690.0,60689.0,0.002634]
[1728618165575,0.96559916,60690.0,60689.0,0.002634]
[1728618166464,0.97859916,60690.0,60689.0,0.003634]
[1728618167471,0.97659916,60690.0,60689.0,0.003634]
[1728618168159,0.97859916,60690.0,60689.0,0.003634]
[1728618169332,0.97859916,60690.0,60675.0,0.24774756]
[1728618169333,0.344511,60683.0,60682.0,0.24774756]
[1728618169578,0.6602807,60683.0,60682.0,0.24774756]
[1728618169805,0.6602807,60683.0,60674.0,0.001634]
[1728618169806,0.351631,60675.0,60674.0,0.001634]
[1728618170020,0.6188403,60675.0,60674.0,0.001634]
[1728618170238,0.80164231,60675.0,60674.0,0.001634]
[1728618170500,0.80364231,60675.0,60674.0,0.001634]
[1728618171426,0.81464231,60675.0,60674.0,0.002634]
[1728618172075,0.82764231,60675.0,60674.0,0.003634]
[1728618172300,0.82764231,60675.0,60674.0,0.002634]
[1728618172513,0.81464231,60675.0,60674.0,0.002634]
[1728618172786,0.82864231,60675.0,60674.0,0.003634]
[1728618173002,0.81764231,60675.0,60674.0,0.002634]
[1728618173481,0.83164231,60675.0,60674.0,0.002634]
[1728618173918,0.80364231,60675.0,60674.0,0.001634]
[1728618174144,0.83164231,60675.0,60674.0,0.001634]
[1728618174587,0.80364231,60675.0,60674.0,0.001634]
[1728618174805,0.81764231,60675.0,60674.0,0.001634]
[1728618175030,0.80364231,60675.0,60674.0,0.001634]
[1728618175469,0.81764231,60675.0,60674.0,0.001634]
[1728618175671,0.80364231,60675.0,60674.0,0.001634]
[1728618175937,0.81764231,60675.0,60674.0,0.001634]
[1728618176441,0.7485048,60664.0,60663.0,0.24784756]
[1728618176670,0.9178141,60664.0,60663.0,0.24784756]
[1728618176916,0.93096053,60664.0,60663.0,0.24784756]
[1728618177151,0.93096053,60664.0,60663.0,0.0001]
[1728618178121,0.95796053,60664.0,60663.0,0.0001]
[1728618178339,1.12740323,60664.0,60663.0,0.0001]
[1728618180744,1.10040323,60664.0,60663.0,0.0001]
[1728618180981,1.11440323,60664.0,60663.0,0.0001]
[1728618181228,1.14005174,60664.0,60663.0,0.0001]
[1728618190818,1.14005174,60664.0,60663.0,0.001734]
[1728618192346,1.16584868,60664.0,60663.0,0.001734]
[1728618194623,1.06267244,60664.0,60663.0,0.001734]
[1728618196958,0.86510188,60664.0,60663.0,0.001734]
[1728618197196,1.06267244,60664.0,60663.0,0.001734]
[1728618208181,1.06267244,60664.0,60656.0,0.001634]
[1728618208182,0.56724556,60657.0,60656.0,0.001634]
[1728618208421,0.81675486,60657.0,60656.0,0.001634]
[1728618208661,0.82978806,60657.0,60656.0,0.001634]
[1728618210663,0.84378806,60657.0,60656.0,0.001634]
[1728618210953,0.74734984,60649.0,60648.0,0.24938156]
[1728618211165,0.91865914,60649.0,60648.0,0.24938156]
[1728618211378,0.276407,60644.0,60635.0,0.0995]
[1728618211601,0.54450158,60644.0,60635.0,0.0995]
[1728618211820,0.55752198,60644.0,60635.0,0.0995]
[1728618212048,0.72696468,60644.0,60635.0,0.0995]
[1728618212300,0.82774996,60644.0,60635.0,0.0995]
[1728618212967,0.72696468,60644.0,60635.0,0.0995]
[1728618213630,0.55752198,60644.0,60635.0,0.0995]
[1728618214083,0.4677367,60644.0,60635.0,0.0995]
[1728618214322,0.4747367,60644.0,60634.0,0.001634]
[1728618214572,0.57352198,60644.0,60643.0,0.082334]